bitfinex-derivatives/quotes_SOLF0:USTF0_20240908
["timestamp","ask_amount","ask_price","bid_price","bid_amount"]
[1725820589215,3.0994,129.07,129.05,8.35]
[1725820589915,3.0994,129.07,129.04,9.7217]
[1725820592327,3.0996,129.06,129.04,9.7217]
[1725820592923,8.35,129.09,129.02,8.35]
[1725820593324,8.35,129.08,129.0,3.84698569]
[1725820593527,8.35,129.04,128.98,8.35]
[1725820593724,12.30991626,129.04,128.98,8.35]
[1725820594322,3.95991626,129.04,128.95,3.9389]
[1725820594629,2.3248,129.07,128.96,8.35]
[1725820594630,8.35,129.02,128.96,8.35]
[1725820595019,8.35,128.99,128.95,1.3216]
[1725820595224,27.28805706,129.05,128.93,141.56770114]
[1725820595225,1.0,129.03,128.93,141.56770114]
[1725820595428,8.35,128.99,128.93,141.56770114]
[1725820595730,1.0,129.03,128.94,8.35]
[1725820595731,8.35,129.0,128.94,8.35]
[1725820596137,3.1018,128.97,128.94,8.35]
[1725820596441,3.83547836,128.97,128.94,8.35]
[1725820596725,8.35,129.0,128.94,8.35]
[1725820597625,3.1016,128.98,128.94,8.35]
[1725820597830,6.93092505,128.98,128.94,8.35]
[1725820598024,3.1016,128.98,128.94,8.35]
[1725820598225,8.35,129.0,128.94,8.35]
[1725820599835,3.1016,128.97,128.94,8.35]
[1725820603433,3.1016,128.97,128.95,8.35]
[1725820605041,3.1015,128.98,128.96,8.35]
[1725820606734,3.1015,128.98,128.95,8.35]
[1725820607338,3.1016,128.97,128.95,8.35]
[1725820608039,3.1015,128.98,128.95,8.35]
[1725820611645,3.1016,128.97,128.93,141.56770114]
[1725820611847,3.1016,128.97,128.94,8.35]
[1725820616251,3.1018,128.96,128.92,1.3887]
[1725820616457,3.91397098,128.98,128.93,8.35]
[1725820616648,8.35,128.99,128.93,8.35]
[1725820617842,8.35,128.99,128.92,1.3887]
[1725820617843,3.102,128.96,128.94,8.35]
[1725820619250,3.1021,128.95,128.94,8.35]
[1725820619454,3.80652443,128.97,128.94,8.35]
[1725820619644,8.35,128.99,128.94,8.35]
[1725820619950,3.1018,128.97,128.94,8.35]
[1725820620152,7.06417393,128.97,128.94,8.35]
[1725820622248,3.1018,128.97,128.94,8.35]
[1725820622649,3.1018,128.97,128.95,8.35]
[1725820622850,3.1015,128.98,128.95,8.35]
[1725820627047,8.35,129.02,128.95,8.35]
[1725820627254,1.0,129.03,128.98,8.35]
[1725820627949,3.1008,129.01,128.98,8.35]
[1725820631042,3.101,129.0,128.97,3.9501]
[1725820631248,8.35,129.02,128.97,12.3001]
[1725820631644,3.1011,129.0,128.97,12.3001]
[1725820643063,3.1011,129.0,128.98,8.35]
[1725820645265,3.1007,129.01,128.98,8.35]
[1725820648565,3.1004,129.02,128.99,8.35]
[1725820649063,3.96805706,129.05,128.98,3.91461144]
[1725820649064,3.96805706,129.05,129.01,8.35]
[1725820649360,107.02337498,129.06,129.02,8.35]
[1725820650569,3.0998,129.05,129.02,8.35]
[1725820652565,9.7168,129.09,129.02,8.35]
[1725820652566,3.1,129.04,129.02,8.35]
[1725820654666,3.1,129.04,129.03,8.35]
[1725820655966,3.0998,129.05,129.03,8.35]
[1725820656760,3.0999,129.04,129.03,8.35]
[1725820662368,3.1002,129.03,129.02,9.6866]
[1725820677984,3.1002,129.03,129.02,1.3366]
[1725820678185,3.1002,129.03,129.02,9.6866]
[1725820679381,3.1002,129.03,129.02,1.3366]
[1725820679582,3.1002,129.03,129.02,9.6866]
[1725820682987,3.1002,129.03,129.02,1.3366]
[1725820683286,3.1002,129.03,129.02,9.6866]
[1725820684292,3.1,129.04,129.02,9.6866]
[1725820684496,3.1,129.04,129.03,8.35]
[1725820698804,3.1,129.04,129.02,1.3366]
[1725820699010,3.1,129.04,129.03,8.35]
[1725820701315,3.0998,129.05,129.03,8.35]
[1725820707919,3.0999,129.04,129.03,8.35]
[1725820711023,3.1003,129.03,129.0,3.82076935]
[1725820711225,12.15581395,129.05,128.98,1.3041]
[1725820711430,12.15581395,129.05,128.99,12.52771529]
[1725820711725,12.15581395,129.05,128.99,8.35]
[1725820711726,3.1006,129.02,128.99,8.35]
[1725820713717,3.1007,129.01,128.99,8.35]
[1725820718030,3.1007,129.01,129.0,8.35]
[1725820722228,3.1009,129.0,128.98,1.3041]
[1725820722434,3.1009,129.0,128.98,9.6541]
[1725820722737,3.1009,129.0,128.99,4.17965754]
[1725820722937,3.1009,129.0,128.99,12.52965754]
[1725820723125,3.1007,129.01,128.99,8.35]
[1725820723931,8.35,129.04,128.98,5.25346807]
[1725820724228,8.35,129.04,128.99,8.35]
[1725820724739,12.3133248,129.04,128.99,8.35]
[1725820724936,3.1008,129.01,128.99,8.35]
[1725820725543,3.1008,129.01,129.0,8.35]
[1725820728535,23.32,129.1,129.0,8.35]
[1725820728736,8.35,129.07,129.01,8.35]
[1725820729036,23.32,129.1,129.04,8.35]
[1725820729037,8.35,129.1,129.04,8.35]
[1725820729341,0.28493162,129.09,129.04,8.35]
[1725820730142,8.35,129.08,129.04,8.35]
[1725820730442,3.0995,129.06,129.04,8.35]
[1725820739451,3.0995,129.06,129.02,1.339]
[1725820739653,3.0995,129.06,129.02,9.689]
[1725820740550,8.35,129.07,129.02,1.339]
[1725820741441,3.1,129.04,129.02,1.339]
[1725820743758,3.1,129.04,129.02,9.689]
[1725820751058,8.35,129.08,129.02,9.689]
[1725820751461,8.35,129.07,129.02,1.339]
[1725820751963,8.35,129.06,129.0,8.35]
[1725820752161,3.86890379,129.05,129.0,8.35]
[1725820752467,3.1003,129.03,129.0,8.35]
[1725820753761,3.1003,129.03,129.01,8.35]
[1725820754860,3.1,129.04,129.02,8.35]
[1725820755062,12.25883014,129.05,128.98,143.38936025]
[1725820755269,8.35,129.04,128.98,139.43999218]
[1725820755462,3.1011,129.0,128.98,139.43999218]
[1725820761473,8.35,129.02,128.97,12.2551]
[1725820761673,8.35,129.02,128.97,10.931]
[1725820761874,3.1023,128.95,128.92,1.3801]
[1725820762070,3.1023,128.95,128.92,9.7301]
[1725820762270,3.1023,128.95,128.93,4.18751499]
[1725820762566,3.1023,128.95,128.94,4.18751499]
[1725820762768,3.1023,128.95,128.92,13.56694863]
[1725820762961,3.1023,128.94,128.93,4.18994735]
[1725820763171,3.1023,128.94,128.91,9.6592]
[1725820763774,3.1023,128.94,128.92,4.19098998]
[1725820763967,3.1023,128.94,128.91,9.6592]
[1725820764169,3.1026,128.93,128.91,9.6592]
[1725820765871,3.1026,128.93,128.91,1.3092]
[1725820768163,3.1028,128.92,128.91,1.3092]
[1725820768970,3.1027,128.93,128.91,9.6592]
[1725820770880,3.1028,128.92,128.91,1.3092]
[1725820771064,8.35,128.95,128.87,2.6534]
[1725820771270,8.35,128.93,128.87,16.17731117]
[1725820771567,12.22664829,128.93,128.87,16.17731117]
[1725820772969,12.22664829,128.93,128.87,12.367]
[1725820773571,3.1032,128.91,128.87,12.367]
[1725820774668,3.1032,128.91,128.87,16.32905183]
[1725820774870,3.1032,128.91,128.88,8.35]
[1725820775077,3.90074499,128.94,128.9,8.35]
[1725820775475,8.35,128.96,128.9,8.35]
[1725820775978,3.1027,128.93,128.9,8.35]
[1725820778169,12.21465932,128.96,128.9,8.35]
[1725820778170,3.86465932,128.96,128.91,8.35]
[1725820778367,8.35,128.98,128.93,8.35]
[1725820778566,3.91790552,128.97,128.93,8.35]
[1725820778879,3.1022,128.95,128.93,8.35]
[1725820781981,3.1022,128.95,128.91,8.35]
[1725820783380,3.1024,128.94,128.91,8.35]
[1725820784085,3.1022,128.95,128.91,8.35]
[1725820785682,3.1022,128.95,128.91,9.6788]
[1725820788988,3.1024,128.94,128.91,9.6788]
[1725820789290,3.1024,128.94,128.91,1.3288]
[1725820790780,3.1027,128.93,128.91,1.3288]
[1725820794392,3.1028,128.92,128.91,1.3288]
[1725820799492,3.1026,128.93,128.91,9.6788]
[1725820811802,116.56400085,129.0,128.92,8.35]
[1725820812001,8.35,128.99,128.93,8.35]
[1725820812202,3.87733726,128.98,128.93,8.35]
[1725820813299,8.35,128.99,128.93,8.35]
[1725820814003,3.102,128.96,128.93,8.35]
[1725820816199,3.1021,128.95,128.93,8.35]
[1725820817503,3.1024,128.94,128.91,9.6788]
[1725820821414,8.35,128.97,128.91,9.6788]
[1725820822405,3.1025,128.94,128.91,9.6788]
[1725820822803,3.1025,128.94,128.92,8.35]
[1725820831711,3.1017,128.97,128.93,11.4524]
[1725820831909,3.1017,128.97,128.95,8.35]
[1725820833919,3.1015,128.98,128.95,8.35]
[1725820834615,6.89872286,128.98,128.95,8.35]
[1725820835714,3.1016,128.97,128.95,8.35]
[1725820838924,116.56400085,129.0,128.96,8.35]
[1725820839113,9.6268,129.05,128.98,8.35]
[1725820839418,3.1008,129.01,128.98,8.35]
[1725820839630,3.1008,129.01,128.99,8.35]
[1725820840230,3.1005,129.02,128.99,8.35]
[1725820841717,3.1005,129.02,128.97,1.3353]
[1725820841718,3.1005,129.02,128.98,8.35]
[1725820843327,3.1002,129.03,128.99,8.35]
[1725820844330,3.1004,129.02,128.99,8.35]
[1725820852332,12.30277605,129.04,128.97,1.3353]
[1725820852530,8.35,129.04,128.97,9.6853]
[1725820853032,3.91206575,129.03,128.97,9.6853]
[1725820853435,3.101,129.0,128.97,9.6853]
[1725820853628,3.101,129.0,128.98,8.35]
[1725820854425,3.1007,129.01,128.99,8.35]
[1725820854624,8.35,129.07,129.0,8.35]
[1725820854833,0.28497511,129.06,129.0,8.35]
[1725820855029,8.63497511,129.06,129.0,8.35]
[1725820855228,8.35,129.06,129.0,8.35]
[1725820856228,3.89539392,129.07,129.03,8.35]
[1725820856530,3.88423664,129.08,129.05,8.35]
[1725820856738,117.73624932,129.11,129.05,8.35]
[1725820856929,0.28491698,129.1,129.05,8.35]
[1725820857230,4.14240321,129.1,129.04,8.35]
[1725820857534,117.73624932,129.11,129.04,8.35]
[1725820857535,3.0992,129.08,129.04,8.35]
[1725820858237,3.0992,129.07,129.04,8.35]
[1725820859327,117.73624932,129.11,129.03,7.04930625]
[1725820859328,3.8365243,129.11,129.03,7.04930625]
[1725820859534,9.6438,129.12,129.06,8.35]
[1725820859731,8.63489529,129.11,129.06,8.35]
[1725820859932,3.099,129.09,129.04,5.16991882]
[1725820860130,3.099,129.09,129.05,8.35]
[1725820860338,8.35,129.11,129.05,8.35]
[1725820861330,3.099,129.08,129.05,8.35]
[1725820861935,3.0994,129.07,129.04,1.2927]
[1725820862135,3.0994,129.07,129.0,1.3745]
[1725820862136,8.35,129.08,129.02,8.35]
[1725820862439,3.0991,129.08,129.05,8.35]
[1725820862639,8.35,129.08,129.02,1.3532]
[1725820862834,8.35,129.08,129.02,9.7032]
[1725820863029,3.0998,129.05,129.02,9.7032]
[1725820865137,3.0995,129.06,129.02,9.7032]
[1725820865643,3.0995,129.06,129.03,8.35]
[1725820866838,3.0997,129.05,129.03,8.35]
[1725820867734,3.1,129.04,129.01,1.3165]
[1725820867940,3.1,129.04,129.02,8.35]
[1725820868844,8.35,129.06,129.02,8.35]
[1725820869337,3.1001,129.04,129.02,8.35]
[1725820875849,3.1001,129.04,129.01,1.3165]
[1725820876144,8.35,129.03,128.98,1.3468]
[1725820876345,8.35,129.03,128.96,8.35]
[1725820876552,3.1008,129.01,128.96,8.35]
[1725820877255,3.1009,129.0,128.96,8.35]
[1725820880252,3.1011,128.99,128.98,8.35]
[1725820881951,3.101,129.0,128.98,8.35]
[1725820883350,3.89091471,129.05,128.99,8.35]
[1725820883552,8.35,129.06,129.01,8.35]
[1725820884053,3.1,129.04,129.01,8.35]
[1725820884248,8.35,129.06,129.01,8.35]
[1725820885750,3.1001,129.04,129.01,8.35]
[1725820889255,3.1002,129.03,129.01,8.35]
[1725820891958,3.1,129.04,129.02,8.35]
[1725820903364,3.1002,129.03,128.99,7.0227631]
[1725820903664,8.35,129.04,128.98,12.3647]
[1725820904560,12.27929659,129.04,128.98,12.3647]
[1725820904764,3.1006,129.02,128.98,12.3647]
[1725820905569,3.1007,129.01,128.98,12.3647]
[1725820906665,8.35,129.03,128.98,4.0147]
[1725820906857,8.35,129.03,128.98,1.2941]
[1725820907458,3.101,129.0,128.98,1.2941]
[1725820910555,3.1011,128.99,128.98,1.2941]
[1725820911569,3.1011,128.99,128.98,9.6441]
[1725820912958,3.1009,129.0,128.98,9.6441]
[1725820913162,3.1009,129.0,128.99,8.35]
[1725820922380,3.1007,129.01,128.99,8.35]
[1725820926578,3.1005,129.02,129.0,8.35]
[1725820926980,8.35,129.06,129.0,8.35]
[1725820927286,27.17241066,129.12,129.02,8.35]
[1725820927287,1.3831,129.11,129.02,8.35]
[1725820927489,8.35,129.07,129.02,8.35]
[1725820928387,3.1001,129.04,129.02,8.35]
[1725820938694,3.1001,129.04,129.0,3.94161432]
[1725820938897,3.1001,129.04,129.01,8.35]
[1725820945303,3.1003,129.03,129.01,8.35]
[1725820948905,3.1004,129.02,128.98,2.6591]
[1725820949203,3.1004,129.02,128.99,8.35]
[1725820949702,3.1007,129.01,128.99,8.35]
[1725820949902,12.17888339,129.05,128.99,8.35]
[1725820950302,3.1008,129.01,128.99,8.35]
[1725820954900,8.35,129.02,128.95,1.3203]
[1725820955095,8.35,129.01,128.95,9.6703]
[1725820956101,3.1015,128.98,128.95,9.6703]
[1725820957108,3.1015,128.98,128.96,8.35]
[1725820969812,3.1015,128.98,128.95,9.6703]
[1725820970814,1.291,129.04,128.97,8.35]
[1725820971009,12.17888339,129.05,128.99,8.35]
[1725820971210,3.1006,129.02,129.0,8.35]
[1725820971416,8.35,129.06,129.0,8.35]
[1725820971914,3.1003,129.03,129.02,8.35]
[1725820974724,3.95191934,129.05,129.02,8.35]
[1725820974928,8.35,129.07,129.02,8.35]
[1725820976232,9.6804,129.08,129.02,8.35]
[1725820976431,9.6804,129.08,129.03,8.35]
[1725820976823,3.0998,129.05,129.03,8.35]
[1725820978823,3.0999,129.04,129.01,1.2981]
[1725820980623,3.1002,129.03,129.01,1.2981]
[1725820982835,8.35,129.04,128.98,8.35]
[1725820983226,8.35,129.04,128.99,8.35]
[1725820983425,3.1006,129.02,128.97,3.1016]
[1725820983629,3.1006,129.02,128.99,8.35]
[1725820986929,3.1007,129.01,128.99,8.35]
[1725820987828,3.1007,129.01,128.97,3.1016]
[1725820988031,3.1007,129.01,128.99,8.35]
[1725820988828,3.1005,129.02,129.0,8.35]
[1725820992139,3.806109,129.05,128.99,7.89962799]
[1725820992140,3.1002,129.04,129.01,8.35]
[1725820992640,3.1002,129.04,129.03,8.35]
[1725820992833,3.0997,129.05,129.03,8.35]
[1725820993035,3.0997,129.05,129.04,8.35]
[1725820993235,8.35,129.11,129.04,8.35]
[1725820993434,3.0995,129.06,129.04,8.35]
[1725820997042,3.0997,129.05,129.03,8.35]
[1725821001545,3.0997,129.05,129.03,8.32644844]
[1725821002647,3.0997,129.05,129.01,3.1005]
[1725821002648,3.0999,129.04,129.0,7.30443095]
[1725821002849,3.0999,129.04,129.02,8.35]
[1725821003553,3.1002,129.03,129.02,8.35]
[1725821005950,3.1002,129.03,129.0,12.55373095]
[1725821006341,3.1004,129.02,129.0,4.20373095]
[1725821007750,3.1004,129.02,128.99,16.1679932]
[1725821008353,3.1004,129.02,129.0,8.35]
[1725821013458,3.1004,129.02,129.01,8.35]
[1725821016860,3.1002,129.03,129.01,8.35]
[1725821025174,3.1002,129.03,128.99,10.9190932]
[1725821025363,3.1002,129.03,129.0,8.35]
[1725821031789,3.1004,129.02,129.0,8.35]
[1725821048002,3.0998,129.05,129.0,8.35]
[1725821048195,3.0998,129.05,129.04,8.35]
[1725821048794,3.1,129.04,129.01,4.20415309]
[1725821048997,3.1,129.04,129.03,8.35]
[1725821059810,3.79534883,129.05,128.99,7.8179932]
[1725821059996,8.35,129.06,129.0,12.55430684]
[1725821060201,3.83294573,129.05,129.0,8.35]
[1725821060904,3.1003,129.03,129.0,8.35]
[1725821061299,3.1003,129.03,129.01,8.35]
[1725821081118,3.1003,129.03,129.02,8.35]
[1725821081416,3.1,129.04,129.02,8.35]
[1725821081616,1.0,129.11,129.03,8.35]
[1725821081918,1.0,129.11,129.06,8.35]
[1725821083313,3.0994,129.07,129.06,8.35]
[1725821095225,3.099,129.08,129.06,8.35]
[1725821098021,3.099,129.08,129.07,8.35]
[1725821100622,3.099,129.08,129.06,8.35]
[1725821101524,3.0992,129.07,129.04,2.7776]
[1725821101721,9.35,129.11,129.05,8.35]
[1725821103426,3.0991,129.08,129.05,8.35]
[1725821104624,3.0991,129.08,129.06,8.35]
[1725821104936,3.0985,129.1,129.07,8.35]
[1725821105122,3.90241066,129.12,129.09,8.35]
[1725821105326,1.3001,129.13,129.09,8.35]
[1725821105528,3.0985,129.1,129.09,8.35]
[1725821109633,3.0987,129.09,129.06,8.35]
[1725821109934,3.0987,129.09,129.04,2.7776]
[1725821109935,8.35,129.09,129.03,9.7393]
[1725821110130,8.35,129.07,129.03,1.3893]
[1725821110334,8.35,129.04,128.99,8.35]
[1725821110524,12.29770197,129.04,128.99,8.35]
[1725821111141,3.1004,129.03,128.99,8.35]
[1725821112232,3.1005,129.02,128.99,8.35]
[1725821114938,3.1005,129.02,129.0,8.35]
[1725821115340,3.1005,129.02,129.01,8.35]
[1725821122746,3.1005,129.02,128.98,7.1453]
[1725821122946,3.1005,129.02,129.0,8.35]
[1725821133951,3.1006,129.01,129.0,8.35]
[1725821144859,3.1006,129.01,128.99,8.35]
[1725821145054,3.1009,129.0,128.98,4.044]
[1725821145253,3.1009,129.0,128.98,12.394]
[1725821148263,3.1007,129.01,128.99,8.35]
[1725821151066,3.1005,129.02,129.0,8.35]
[1725821152979,3.1005,129.02,128.98,7.1453]
[1725821152980,3.1005,129.02,128.99,8.35]
[1725821157165,3.1005,129.02,128.99,11.4511]
[1725821158172,3.1002,129.03,129.0,3.1008]
[1725821158370,3.1002,129.03,128.99,8.35]
[1725821158670,3.83664133,129.05,128.99,8.35]
[1725821160373,3.1004,129.02,128.99,11.451]
[1725821166180,3.1004,129.02,128.99,15.31090075]
[1725821166780,3.1004,129.02,128.99,11.451]
[1725821167886,12.18664133,129.05,128.86,357.32629274]
[1725821167887,8.35,129.0,128.86,357.32629274]
[1725821168074,8.35,129.0,128.94,8.35]
[1725821168275,3.1018,128.96,128.95,4.205208]
[1725821168476,3.1018,128.96,128.9,1.3441]
[1725821168477,8.35,128.97,128.9,9.6941]
[1725821168780,8.35,128.97,128.91,4.20704563]
[1725821168975,12.31922926,128.97,128.9,12.7973]
[1725821169180,12.31922926,128.97,128.91,4.20744494]
[1725821169375,3.1022,128.95,128.9,12.7973]
[1725821169977,3.1022,128.95,128.91,8.35]
[1725821170694,3.1023,128.94,128.91,8.35]
[1725821171785,135.68600874,129.03,128.9,1.3441]
[1725821172088,8.35,128.96,128.9,9.6941]
[1725821172383,3.79121731,128.95,128.9,9.6941]
[1725821172984,3.79121731,128.95,128.9,1.3441]
[1725821173188,3.79121731,128.95,128.78,13.9699]
[1725821173189,8.35,128.92,128.85,3.1045]
[1725821173391,8.35,128.92,128.86,4.20860834]
[1725821173574,3.80177657,128.91,128.85,11.4545]
[1725821173779,3.1035,128.9,128.85,11.4545]
[1725821174078,3.80177657,128.91,128.86,4.2086714]
[1725821174282,8.35,128.9,128.85,3.93949398]
[1725821174590,8.35,128.89,128.83,6.96515496]
[1725821174884,12.2064756,128.89,128.83,11.4548]
[1725821175084,12.2064756,128.89,128.83,8.35]
[1725821175687,12.2064756,128.89,128.84,8.35]
[1725821175688,3.1041,128.87,128.84,8.35]
[1725821181577,3.8564756,128.89,128.83,3.82699243]
[1725821181777,3.1044,128.86,128.84,8.35]
[1725821182186,3.8564756,128.89,128.84,8.35]
[1725821183080,8.35,128.89,128.83,3.96965228]
[1725821183285,8.35,128.88,128.82,8.35]
[1725821183683,8.35,128.86,128.79,1.2911]
[1725821183882,8.35,128.86,128.8,12.13754009]
[1725821184395,3.1049,128.84,128.8,15.24314009]
[1725821185087,3.105,128.83,128.8,12.13754009]
[1725821185395,3.105,128.83,128.8,8.35]
[1725821186186,3.1053,128.82,128.79,13.55595236]
[1725821187198,1.2901,128.89,128.8,8.35]
[1725821187397,5.20810605,128.89,128.82,8.35]
[1725821187601,8.35,128.87,128.82,8.35]
[1725821187899,3.1047,128.84,128.82,8.35]
[1725821190500,12.17366643,128.86,128.8,8.35]
[1725821190795,8.35,128.86,128.8,8.35]
[1725821190987,3.1051,128.83,128.8,8.35]
[1725821197089,1.2901,128.89,128.82,8.35]
[1725821197292,3.85433651,128.89,128.85,8.35]
[1725821197492,123.72926789,128.91,128.85,8.35]
[1725821197788,3.95411134,128.9,128.85,8.35]
[1725821198203,123.72926789,128.91,128.85,8.35]
[1725821198499,3.83492507,128.9,128.85,8.35]
[1725821198700,3.1039,128.88,128.85,8.35]
[1725821202807,3.1042,128.86,128.79,5.20595236]
[1725821203107,8.35,128.86,128.79,5.20595236]
[1725821203309,8.35,128.86,128.79,16.66175236]
[1725821203903,3.1051,128.83,128.79,16.66175236]
[1725821207408,8.35,128.84,128.79,8.31175236]
[1725821207601,3.1052,128.82,128.79,1.2911]
[1725821208302,3.1052,128.82,128.79,9.6411]
[1725821212007,3.1051,128.83,128.79,12.7469]
[1725821212920,3.1052,128.82,128.79,12.7469]
[1725821213611,3.1052,128.82,128.79,16.63803216]
[1725821213820,3.1051,128.83,128.79,16.63803216]
[1725821215619,3.1051,128.83,128.81,8.35]
[1725821217606,3.1051,128.83,128.8,11.4557]
[1725821219920,3.1051,128.83,128.79,4.397]
[1725821220120,8.35,128.84,128.79,4.397]
[1725821220121,3.1053,128.82,128.79,4.397]
[1725821221319,3.1053,128.82,128.79,1.2911]
[1725821223331,3.1053,128.82,128.79,4.397]
[1725821223731,3.105,128.83,128.8,8.35]
[1725821225831,3.105,128.83,128.81,8.35]
[1725821226526,8.35,128.87,128.81,8.35]
[1725821226727,3.1048,128.84,128.81,8.35]
[1725821229320,3.1053,128.82,128.79,1.2911]
[1725821229524,3.1053,128.82,128.79,4.3969]
[1725821229725,150.80110047,128.91,128.79,16.6839347]
[1725821229932,8.35,128.86,128.81,8.35]
[1725821230830,3.1049,128.84,128.81,8.35]
[1725821240033,3.1046,128.85,128.81,11.4554]
[1725821240238,3.1046,128.85,128.79,5.2281347]
[1725821240239,127.53110047,128.91,128.84,8.35]
[1725821240530,127.53110047,128.91,128.79,5.2281347]
[1725821240531,135.88110047,128.91,128.85,8.35]
[1725821241132,3.1042,128.87,128.85,8.35]
[1725821241338,3.1042,128.87,128.84,8.35]
[1725821247650,8.35,128.88,128.82,3.1051]
[1725821247843,8.35,128.88,128.83,8.35]
[1725821249246,3.1044,128.86,128.83,8.35]
[1725821256956,3.1044,128.86,128.83,11.4549]
[1725821257959,3.1044,128.86,128.84,8.35]
[1725821260957,3.1046,128.85,128.8,153.89710089]
[1725821261158,8.35,128.88,128.82,8.35]
[1725821261451,3.1044,128.86,128.83,8.35]
[1725821262357,3.1044,128.86,128.83,11.4549]
[1725821265962,3.1044,128.86,128.83,8.35]
[1725821266959,3.1044,128.86,128.83,11.455]
[1725821270568,3.1044,128.86,128.84,8.35]
[1725821270762,135.88110047,128.91,128.84,12.7947]
[1725821270763,127.53110047,128.91,128.84,12.7947]
[1725821270962,135.88110047,128.91,128.84,12.7947]
[1725821272470,3.104,128.87,128.84,12.7947]
[1725821283679,127.53110047,128.91,128.84,9.69]
[1725821283880,135.88110047,128.91,128.84,9.69]
[1725821284282,3.1041,128.87,128.84,12.7946]
[1725821293285,8.35,128.87,128.8,153.89710089]
[1725821293586,8.35,128.87,128.81,4.21186566]
[1725821293888,8.35,128.87,128.82,4.21186566]
[1725821294188,8.35,128.87,128.81,3.1053]
[1725821294385,8.35,128.87,128.82,4.21199555]
[1725821294589,8.35,128.87,128.81,3.1053]
[1725821294796,8.35,128.87,128.82,4.21198549]
[1725821294997,8.35,128.87,128.81,3.1053]
[1725821295387,8.35,128.87,128.81,11.4553]
[1725821296292,3.1049,128.84,128.81,11.4553]
[1725821302309,3.1049,128.84,128.82,4.21250387]
[1725821302515,3.1049,128.84,128.81,11.4553]
[1725821303007,3.1049,128.84,128.82,4.21250387]
[1725821303208,3.1049,128.84,128.81,11.4553]
[1725821303508,3.1049,128.84,128.82,4.21250387]
[1725821303712,3.1049,128.84,128.81,11.4553]
[1725821303907,3.1049,128.84,128.82,4.21249521]
[1725821304212,3.1049,128.84,128.81,11.4553]
[1725821304908,8.35,128.88,128.8,155.20970089]
[1725821305211,8.35,128.84,128.8,153.89710089]
[1725821305409,3.84743788,128.83,128.8,153.89710089]
[1725821305709,3.1055,128.81,128.8,153.89710089]
[1725821307610,3.1057,128.8,128.78,2.78]
[1725821310812,3.1057,128.8,128.78,11.13]
[1725821323425,8.35,128.85,128.79,8.35]
[1725821323626,104.76761582,128.86,128.79,8.35]
[1725821323824,113.11761582,128.86,128.79,12.13804574]
[1725821324122,113.11761582,128.86,128.79,9.6768]
[1725821326317,3.1054,128.82,128.79,9.6768]
[1725821332224,3.1054,128.82,128.79,12.7827]
[1725821332737,3.1054,128.82,128.79,9.6768]
[1725821340044,104.76761582,128.86,128.8,8.35]
[1725821340343,104.76761582,128.86,128.83,8.35]
[1725821340549,8.35,128.89,128.83,8.35]
[1725821340845,3.1044,128.86,128.83,8.35]
[1725821342345,8.35,128.89,128.83,8.35]